[Event "Early-Titled-Tuesday-Blitz-October-10-2023"]
[Site "Chess.com"]
[Date "2023.10.10"]
[Round "6"]
[White "ZeGood_ZeBad_ZeUgly"]
[Black "MaxLeto"]
[Result "0-1"]
[WhiteElo "2330"]
[BlackElo "2495"]
[TimeControl "180+1"]
[EndTime "9:05:04 PDT"]
[Termination "MaxLeto won by resignation"]

1. c4 {[%clk 0:03:00.9]} 1... e5 {[%clk 0:02:41.2]} 2. Nc3 {[%clk 0:03:00.8]}
2... Nc6 {[%clk 0:02:40.9]} 3. Nf3 {[%clk 0:02:59.7]} 3... Nf6 {[%clk
0:02:40.8]} 4. d3 {[%clk 0:02:57.7]} 4... Bb4 {[%clk 0:02:40.1]} 5. Bd2 {[%clk
0:02:56]} 5... O-O {[%clk 0:02:40]} 6. a3 {[%clk 0:02:55]} 6... Bxc3 {[%clk
0:02:37.1]} 7. Bxc3 {[%clk 0:02:55.9]} 7... Re8 {[%clk 0:02:36.7]} 8. e4 {[%clk
0:02:50.4]} 8... d6 {[%clk 0:02:34.2]} 9. Be2 {[%clk 0:02:50.4]} 9... Bg4 {[%clk
0:02:28.7]} 10. Nd2 {[%clk 0:02:06.5]} 10... Be6 {[%clk 0:02:19.5]} 11. Nf1
{[%clk 0:02:05.6]} 11... a5 {[%clk 0:02:15.3]} 12. Ne3 {[%clk 0:01:59.5]} 12...
Nd7 {[%clk 0:02:14.6]} 13. Bg4 {[%clk 0:01:58.6]} 13... Nc5 {[%clk 0:02:12.4]}
14. h3 {[%clk 0:01:38.3]} 14... a4 {[%clk 0:02:11.5]} 15. Nd5 {[%clk 0:01:29.5]}
15... Na5 {[%clk 0:01:58.8]} 16. Rc1 {[%clk 0:01:17.7]} 16... Nab3 {[%clk
0:01:54]} 17. Rc2 {[%clk 0:01:17.5]} 17... c6 {[%clk 0:01:52.7]} 18. Ne3 {[%clk
0:01:14.9]} 18... Qg5 {[%clk 0:01:35.6]} 19. O-O {[%clk 0:01:04]} 19... h5
{[%clk 0:01:25.5]} 20. Bxe6 {[%clk 0:00:46.2]} 20... Nxe6 {[%clk 0:01:26.4]} 21.
g3 {[%clk 0:00:34.3]} 21... Nbd4 {[%clk 0:00:35.3]} 22. Rc1 {[%clk 0:00:29.8]}
22... h4 {[%clk 0:00:30.8]} 23. Qg4 {[%clk 0:00:16.6]} 23... hxg3 {[%clk
0:00:31]} 24. Qxg5 {[%clk 0:00:15]} 24... gxf2+ {[%clk 0:00:30.5]} 25. Rxf2
{[%clk 0:00:14.5]} 25... Nxg5 {[%clk 0:00:31.4]} 26. Kg2 {[%clk 0:00:12]} 26...
Re6 {[%clk 0:00:29.7]} 27. Bxd4 {[%clk 0:00:11.7]} 27... exd4 {[%clk 0:00:29.9]}
28. Nf5 {[%clk 0:00:12.6]} 28... c5 {[%clk 0:00:28.7]} 29. h4 {[%clk 0:00:13]}
29... Nh7 {[%clk 0:00:28.6]} 30. Rcf1 {[%clk 0:00:10.3]} 30... Nf6 {[%clk
0:00:28.7]} 31. Nh6+ {[%clk 0:00:08.7]} 31... Kf8 {[%clk 0:00:28.5]} 32. Rxf6
{[%clk 0:00:09.6]} 32... Rxf6 {[%clk 0:00:27.8]} 33. Rxf6 {[%clk 0:00:09.8]}
33... gxf6 {[%clk 0:00:28.5]} 34. Nf5 {[%clk 0:00:10.4]} 34... Ra6 {[%clk
0:00:25.9]} 35. h5 {[%clk 0:00:09.9]} 35... Rb6 {[%clk 0:00:25.1]} 36. Kf3
{[%clk 0:00:09.4]} 36... Rxb2 {[%clk 0:00:22.4]} 37. Nxd6 {[%clk 0:00:10]} 37...
Rb3 {[%clk 0:00:22.8]} 38. Ke2 {[%clk 0:00:09.9]} 38... Rxa3 {[%clk 0:00:20.3]}
39. Nxb7 {[%clk 0:00:10.1]} 39... Ra2+ {[%clk 0:00:19.8]} 40. Kf3 {[%clk
0:00:09.5]} 40... a3 {[%clk 0:00:20.3]} 41. Nxc5 {[%clk 0:00:10.1]} 41... Rb2
{[%clk 0:00:19.9]} 42. Na4 {[%clk 0:00:08.8]} 42... Rb4 {[%clk 0:00:17.8]} 43.
Nc5 {[%clk 0:00:08]} 43... a2 {[%clk 0:00:18.3]} 44. h6 {[%clk 0:00:08.6]} 44...
a1=Q {[%clk 0:00:17.9]} 45. Nd7+ {[%clk 0:00:08.6]} 45... Ke7 {[%clk 0:00:17.4]}
46. h7 {[%clk 0:00:07.9]} 46... Qh1+ {[%clk 0:00:18]} 47. Kf4 {[%clk 0:00:07.8]}
47... Kxd7 {[%clk 0:00:18.9]} 48. h8=Q {[%clk 0:00:07.7]} 48... Qxh8 {[%clk
0:00:18.3]} 0-1

[Event "Early-Titled-Tuesday-Blitz-October-10-2023"]
[Site "Chess.com"]
[Date "2023.10.10"]
[Round "6"]
[White "BeanScreen"]
[Black "Rsnr"]
[Result "0-1"]
[WhiteElo "2726"]
[BlackElo "2853"]
[TimeControl "180+1"]
[EndTime "9:05:05 PDT"]
[Termination "Rsnr won by resignation"]

1. e4 {[%clk 0:03:00.9]} 1... c6 {[%clk 0:02:59.7]} 2. d4 {[%clk 0:03:00.9]}
2... d5 {[%clk 0:03:00.6]} 3. exd5 {[%clk 0:03:01.7]} 3... cxd5 {[%clk
0:03:01.5]} 4. Bd3 {[%clk 0:03:02]} 4... Nc6 {[%clk 0:03:01.5]} 5. c3 {[%clk
0:03:02.7]} 5... Qc7 {[%clk 0:03:01.8]} 6. h3 {[%clk 0:03:02.3]} 6... Nf6 {[%clk
0:03:01.6]} 7. Nf3 {[%clk 0:03:01.9]} 7... g6 {[%clk 0:03:02]} 8. O-O {[%clk
0:03:01.1]} 8... Bf5 {[%clk 0:03:02.2]} 9. Bxf5 {[%clk 0:03:01.4]} 9... gxf5
{[%clk 0:03:03.1]} 10. Re1 {[%clk 0:03:01]} 10... e6 {[%clk 0:02:55.6]} 11. Bg5
{[%clk 0:02:59.3]} 11... Ne4 {[%clk 0:02:55.1]} 12. c4 {[%clk 0:02:55.7]} 12...
dxc4 {[%clk 0:02:14.1]} 13. Nc3 {[%clk 0:02:54.8]} 13... Nxg5 {[%clk 0:02:01.8]}
14. Nxg5 {[%clk 0:02:54.4]} 14... O-O-O {[%clk 0:02:02.5]} 15. Qh5 {[%clk
0:02:46.1]} 15... Rd7 {[%clk 0:01:46.4]} 16. d5 {[%clk 0:02:18.9]} 16... exd5
{[%clk 0:01:47.3]} 17. Re8+ {[%clk 0:02:18.8]} 17... Nd8 {[%clk 0:01:47.4]} 18.
Rd1 {[%clk 0:01:43.4]} 18... Bg7 {[%clk 0:01:39.6]} 19. Rxh8 {[%clk 0:01:41.2]}
19... Bxh8 {[%clk 0:01:40.5]} 20. Nxd5 {[%clk 0:01:38.3]} 20... Qc5 {[%clk
0:01:40.7]} 21. Qxh7 {[%clk 0:01:28.4]} 21... Bxb2 {[%clk 0:01:38.3]} 22. Qxf5
{[%clk 0:01:27.4]} 22... Bd4 {[%clk 0:01:14.5]} 23. Ne7+ {[%clk 0:01:03.3]}
23... Kc7 {[%clk 0:00:47]} 24. Qf4+ {[%clk 0:01:00.3]} 24... Be5 {[%clk
0:00:47.1]} 25. Rxd7+ {[%clk 0:00:19.6]} 25... Kxd7 {[%clk 0:00:48]} 26. Qe4
{[%clk 0:00:17.5]} 26... Kxe7 {[%clk 0:00:41.5]} 27. Nf3 {[%clk 0:00:16.1]}
27... f6 {[%clk 0:00:41.6]} 28. Qh7+ {[%clk 0:00:12.6]} 28... Nf7 {[%clk
0:00:41.6]} 29. Nh4 {[%clk 0:00:12.1]} 29... Qd5 {[%clk 0:00:32.6]} 30. Nf5+
{[%clk 0:00:11.7]} 30... Kd7 {[%clk 0:00:33.2]} 31. g3 {[%clk 0:00:10.9]} 31...
c3 {[%clk 0:00:32.3]} 32. Ne3 {[%clk 0:00:11]} 32... Qe6 {[%clk 0:00:20.1]} 33.
Qe4 {[%clk 0:00:11.2]} 33... Nd6 {[%clk 0:00:20.3]} 34. Qa4+ {[%clk 0:00:11.4]}
34... Ke7 {[%clk 0:00:18.7]} 35. Qxa7 {[%clk 0:00:11.5]} 35... Qc8 {[%clk
0:00:16]} 36. Nd5+ {[%clk 0:00:10.3]} 36... Kf7 {[%clk 0:00:16.6]} 37. Nb6
{[%clk 0:00:09.4]} 37... Qc5 {[%clk 0:00:15.1]} 38. Qb8 {[%clk 0:00:04.4]} 38...
Qxb6 {[%clk 0:00:14.9]} 39. Qh8 {[%clk 0:00:03.7]} 39... Qc5 {[%clk 0:00:14]}
40. Qh7+ {[%clk 0:00:03.8]} 40... Ke6 {[%clk 0:00:14.6]} 41. Qg8+ {[%clk
0:00:03.8]} 41... Kd7 {[%clk 0:00:14.9]} 42. Qh7+ {[%clk 0:00:03.7]} 42... Kc6
{[%clk 0:00:14.6]} 43. Qc2 {[%clk 0:00:04]} 43... b5 {[%clk 0:00:14.5]} 44. h4
{[%clk 0:00:03.9]} 44... Qd4 {[%clk 0:00:14.5]} 45. h5 {[%clk 0:00:02]} 45...
Qd2 {[%clk 0:00:14.8]} 46. Qh7 {[%clk 0:00:01.9]} 46... c2 {[%clk 0:00:15]} 47.
Kg2 {[%clk 0:00:02.6]} 47... c1=Q {[%clk 0:00:15.3]} 0-1

[Event "Early-Titled-Tuesday-Blitz-October-10-2023"]
[Site "Chess.com"]
[Date "2023.10.10"]
[Round "6"]
[White "queen_iryna"]
[Black "aqibjbutt"]
[Result "1/2-1/2"]
[WhiteElo "2332"]
[BlackElo "1978"]
[TimeControl "180+1"]
[EndTime "9:05:05 PDT"]
[Termination "Game drawn - insufficient material"]

1. e4 {[%clk 0:02:59.7]} 1... c6 {[%clk 0:02:58.3]} 2. d4 {[%clk 0:02:57.1]}
2... d5 {[%clk 0:02:58.5]} 3. Nc3 {[%clk 0:02:58]} 3... dxe4 {[%clk 0:02:57.9]}
4. Nxe4 {[%clk 0:02:58.2]} 4... Bf5 {[%clk 0:02:58.5]} 5. Ng3 {[%clk 0:02:56.8]}
5... Bg6 {[%clk 0:02:58.5]} 6. h4 {[%clk 0:02:57.1]} 6... h6 {[%clk 0:02:58.5]}
7. Nf3 {[%clk 0:02:56.6]} 7... Nd7 {[%clk 0:02:57.3]} 8. h5 {[%clk 0:02:56.2]}
8... Bh7 {[%clk 0:02:55]} 9. Bd3 {[%clk 0:02:57.1]} 9... Bxd3 {[%clk 0:02:54.5]}
10. Qxd3 {[%clk 0:02:53.4]} 10... e6 {[%clk 0:02:55.4]} 11. Bd2 {[%clk
0:02:49.6]} 11... Ngf6 {[%clk 0:02:52]} 12. O-O-O {[%clk 0:02:49.4]} 12... Be7
{[%clk 0:02:47.9]} 13. Kb1 {[%clk 0:02:47.7]} 13... O-O {[%clk 0:02:43.9]} 14.
Rhe1 {[%clk 0:02:47.2]} 14... c5 {[%clk 0:02:36.8]} 15. Bc3 {[%clk 0:02:32.4]}
15... Nd5 {[%clk 0:02:32.6]} 16. dxc5 {[%clk 0:02:30.6]} 16... Nxc5 {[%clk
0:02:31.2]} 17. Qc4 {[%clk 0:02:28]} 17... Nxc3+ {[%clk 0:02:14]} 18. Qxc3
{[%clk 0:02:28.9]} 18... Qc7 {[%clk 0:02:05.8]} 19. Ne4 {[%clk 0:02:27.4]} 19...
Rac8 {[%clk 0:01:55.4]} 20. Nxc5 {[%clk 0:02:20.6]} 20... Qxc5 {[%clk
0:01:53.4]} 21. Qxc5 {[%clk 0:02:15.5]} 21... Bxc5 {[%clk 0:01:51]} 22. Re2
{[%clk 0:02:15]} 22... Rfd8 {[%clk 0:01:48.7]} 23. Red2 {[%clk 0:02:12.7]} 23...
Be7 {[%clk 0:01:46.7]} 24. c3 {[%clk 0:02:11]} 24... Rxd2 {[%clk 0:01:45.3]} 25.
Rxd2 {[%clk 0:02:11.9]} 25... Rd8 {[%clk 0:01:44.6]} 26. Kc2 {[%clk 0:02:11.8]}
26... Kf8 {[%clk 0:01:38.7]} 27. Rxd8+ {[%clk 0:02:10.4]} 27... Bxd8 {[%clk
0:01:38.1]} 28. Kd3 {[%clk 0:02:10.1]} 28... Ke7 {[%clk 0:01:37.5]} 29. c4
{[%clk 0:02:08.4]} 29... Bb6 {[%clk 0:01:37.3]} 30. Ke2 {[%clk 0:02:07.1]} 30...
a5 {[%clk 0:01:28.6]} 31. Nd2 {[%clk 0:02:05.3]} 31... Bc5 {[%clk 0:01:21.5]}
32. a3 {[%clk 0:02:04.1]} 32... g6 {[%clk 0:01:13.6]} 33. hxg6 {[%clk
0:02:03.1]} 33... fxg6 {[%clk 0:01:14.5]} 34. Ne4 {[%clk 0:02:02.2]} 34... b6
{[%clk 0:01:12.3]} 35. f3 {[%clk 0:01:59]} 35... e5 {[%clk 0:01:06.9]} 36. Kd3
{[%clk 0:01:58.5]} 36... Ke6 {[%clk 0:01:05.2]} 37. Nc3 {[%clk 0:01:53]} 37...
Kf5 {[%clk 0:00:58]} 38. Nd5 {[%clk 0:01:51.4]} 38... g5 {[%clk 0:00:53.7]} 39.
b4 {[%clk 0:01:49.9]} 39... axb4 {[%clk 0:00:47.9]} 40. axb4 {[%clk 0:01:50.8]}
40... Bg1 {[%clk 0:00:48.6]} 41. Ne3+ {[%clk 0:01:45.7]} 41... Kf4 {[%clk
0:00:35.7]} 42. Nf1 {[%clk 0:01:30.1]} 42... h5 {[%clk 0:00:29.6]} 43. Nd2
{[%clk 0:01:25.8]} 43... Kg3 {[%clk 0:00:27.1]} 44. Ne4+ {[%clk 0:01:14.8]}
44... Kxg2 {[%clk 0:00:24.9]} 45. Nxg5 {[%clk 0:01:14.7]} 45... h4 {[%clk
0:00:25.3]} 46. Ke4 {[%clk 0:01:14.5]} 46... Bd4 {[%clk 0:00:23.3]} 47. f4
{[%clk 0:01:10.7]} 47... exf4 {[%clk 0:00:20.2]} 48. Kxf4 {[%clk 0:00:52]} 48...
h3 {[%clk 0:00:20.1]} 49. Nxh3 {[%clk 0:00:51.8]} 49... Kxh3 {[%clk 0:00:19.8]}
50. Ke4 {[%clk 0:00:52]} 50... Bc3 {[%clk 0:00:20]} 51. c5 {[%clk 0:00:49.9]}
51... bxc5 {[%clk 0:00:11.5]} 52. bxc5 {[%clk 0:00:50.8]} 52... Bb4 {[%clk
0:00:11.9]} 53. c6 {[%clk 0:00:50.7]} 53... Bd6 {[%clk 0:00:12.5]} 54. Kd5
{[%clk 0:00:51.5]} 54... Bc7 {[%clk 0:00:13.1]} 55. Ke6 {[%clk 0:00:51.4]} 55...
Bg3 {[%clk 0:00:13.6]} 56. Kd7 {[%clk 0:00:51.6]} 56... Bf4 {[%clk 0:00:14.2]}
57. c7 {[%clk 0:00:50.7]} 57... Bxc7 {[%clk 0:00:14.8]} 1/2-1/2

[Event "Early-Titled-Tuesday-Blitz-October-10-2023"]
[Site "Chess.com"]
[Date "2023.10.10"]
[Round "6"]
[White "GradualismUnleashed"]
[Black "ozates"]
[Result "0-1"]
[WhiteElo "2582"]
[BlackElo "2767"]
[TimeControl "180+1"]
[EndTime "9:05:06 PDT"]
[Termination "ozates won by checkmate"]

1. e4 {[%clk 0:03:00.9]} 1... e5 {[%clk 0:02:39.3]} 2. Nf3 {[%clk 0:03:00.4]}
2... Nc6 {[%clk 0:02:39.9]} 3. Bb5 {[%clk 0:03:00.6]} 3... a6 {[%clk 0:02:35.6]}
4. Ba4 {[%clk 0:03:00.4]} 4... d6 {[%clk 0:02:34.6]} 5. d4 {[%clk 0:02:57.7]}
5... exd4 {[%clk 0:02:27.6]} 6. Nxd4 {[%clk 0:02:56.3]} 6... Bd7 {[%clk
0:02:27.7]} 7. Nxc6 {[%clk 0:02:53]} 7... Bxc6 {[%clk 0:02:25.4]} 8. Bxc6+
{[%clk 0:02:52.8]} 8... bxc6 {[%clk 0:02:26.3]} 9. Nc3 {[%clk 0:02:52]} 9... Nf6
{[%clk 0:02:26.3]} 10. Bf4 {[%clk 0:02:51.9]} 10... Be7 {[%clk 0:02:25]} 11. O-O
{[%clk 0:02:51.8]} 11... Rb8 {[%clk 0:02:22.7]} 12. b3 {[%clk 0:02:50.6]} 12...
O-O {[%clk 0:02:22.4]} 13. e5 {[%clk 0:02:50.6]} 13... dxe5 {[%clk 0:02:05.8]}
14. Bxe5 {[%clk 0:02:47.5]} 14... Bd6 {[%clk 0:02:06.1]} 15. Re1 {[%clk
0:02:42]} 15... Re8 {[%clk 0:02:05]} 16. Bg3 {[%clk 0:02:19]} 16... Rxe1+ {[%clk
0:01:57.6]} 17. Qxe1 {[%clk 0:02:19.1]} 17... Bb4 {[%clk 0:01:56]} 18. Rd1
{[%clk 0:02:13.7]} 18... Nd5 {[%clk 0:01:49.5]} 19. Be5 {[%clk 0:01:37.2]} 19...
Qg5 {[%clk 0:01:41]} 20. f4 {[%clk 0:01:14.2]} 20... Nxf4 {[%clk 0:01:31.5]} 21.
Bxf4 {[%clk 0:01:00.3]} 21... Qxf4 {[%clk 0:01:32.4]} 22. Qe4 {[%clk 0:00:57.6]}
22... Qf6 {[%clk 0:00:59.4]} 23. Ne2 {[%clk 0:00:48.1]} 23... g6 {[%clk
0:00:54]} 24. Nf4 {[%clk 0:00:38.1]} 24... Bd6 {[%clk 0:00:51.5]} 25. Nd3 {[%clk
0:00:35.1]} 25... Kf8 {[%clk 0:00:47.2]} 26. Rf1 {[%clk 0:00:32.9]} 26... Bxh2+
{[%clk 0:00:44.9]} 27. Kxh2 {[%clk 0:00:33.2]} 27... Qxf1 {[%clk 0:00:45.2]} 28.
Qxc6 {[%clk 0:00:32.1]} 28... Qf5 {[%clk 0:00:35.5]} 29. Qxc7 {[%clk 0:00:29.8]}
29... Rc8 {[%clk 0:00:35.7]} 30. Qd6+ {[%clk 0:00:28.5]} 30... Kg8 {[%clk
0:00:33.8]} 31. c4 {[%clk 0:00:28.1]} 31... Re8 {[%clk 0:00:29.6]} 32. c5 {[%clk
0:00:25.2]} 32... Qh5+ {[%clk 0:00:24.8]} 33. Kg1 {[%clk 0:00:20.6]} 33... Qd1+
{[%clk 0:00:25]} 34. Kh2 {[%clk 0:00:20.9]} 34... Qh5+ {[%clk 0:00:10.2]} 35.
Kg1 {[%clk 0:00:20.8]} 35... Qf5 {[%clk 0:00:07.2]} 36. c6 {[%clk 0:00:18.2]}
36... h5 {[%clk 0:00:07.3]} 37. c7 {[%clk 0:00:18.1]} 37... h4 {[%clk
0:00:04.7]} 38. Qd8 {[%clk 0:00:16.6]} 38... Qe6 {[%clk 0:00:03.1]} 39. Nc5
{[%clk 0:00:13.4]} 39... Qe3+ {[%clk 0:00:03.2]} 40. Kh2 {[%clk 0:00:13.8]}
40... Qe5+ {[%clk 0:00:01.4]} 41. Kg1 {[%clk 0:00:09.2]} 41... Qxc5+ {[%clk
0:00:01.5]} 42. Kf1 {[%clk 0:00:08.8]} 42... Qc1+ {[%clk 0:00:01.6]} 43. Kf2
{[%clk 0:00:08.6]} 43... Qe3+ {[%clk 0:00:02.3]} 44. Kf1 {[%clk 0:00:09.1]}
44... Qe1# {[%clk 0:00:03.2]} 0-1

[Event "Early-Titled-Tuesday-Blitz-October-10-2023"]
[Site "Chess.com"]
[Date "2023.10.10"]
[Round "6"]
[White "Happy1712Drummer"]
[Black "JiiHart"]
[Result "1-0"]
[WhiteElo "2379"]
[BlackElo "2176"]
[TimeControl "180+1"]
[EndTime "9:05:06 PDT"]
[Termination "Happy1712Drummer won on time"]

1. e4 {[%clk 0:03:00.9]} 1... e5 {[%clk 0:02:59.3]} 2. Nf3 {[%clk 0:02:57.9]}
2... Nf6 {[%clk 0:02:59.2]} 3. Nc3 {[%clk 0:02:58]} 3... Nc6 {[%clk 0:02:58.9]}
4. d4 {[%clk 0:02:58.1]} 4... exd4 {[%clk 0:02:56.6]} 5. Nd5 {[%clk 0:02:58.5]}
5... Be7 {[%clk 0:02:17.9]} 6. Bd3 {[%clk 0:02:56]} 6... d6 {[%clk 0:02:15.2]}
7. h3 {[%clk 0:02:56]} 7... Nxd5 {[%clk 0:02:10.9]} 8. exd5 {[%clk 0:02:55.2]}
8... Ne5 {[%clk 0:02:07]} 9. Nxd4 {[%clk 0:02:52.1]} 9... Nxd3+ {[%clk
0:02:06.2]} 10. Qxd3 {[%clk 0:02:51.7]} 10... O-O {[%clk 0:02:00.4]} 11. O-O
{[%clk 0:02:51.5]} 11... Bf6 {[%clk 0:01:55.2]} 12. c3 {[%clk 0:02:51.4]} 12...
Bd7 {[%clk 0:01:54.2]} 13. a4 {[%clk 0:02:49.7]} 13... c5 {[%clk 0:01:52.4]} 14.
dxc6 {[%clk 0:02:46.8]} 14... bxc6 {[%clk 0:01:51.5]} 15. Bf4 {[%clk 0:02:45.1]}
15... d5 {[%clk 0:01:39.2]} 16. b4 {[%clk 0:02:42.1]} 16... Re8 {[%clk
0:01:34.9]} 17. Rfe1 {[%clk 0:02:37.7]} 17... a5 {[%clk 0:01:16.8]} 18. Rxe8+
{[%clk 0:02:33.6]} 18... Qxe8 {[%clk 0:01:14.1]} 19. Bd6 {[%clk 0:02:18.1]}
19... Qe4 {[%clk 0:01:03.2]} 20. Qxe4 {[%clk 0:02:12.5]} 20... dxe4 {[%clk
0:01:03.5]} 21. Bc5 {[%clk 0:02:01.3]} 21... Be5 {[%clk 0:00:55]} 22. Kf1 {[%clk
0:01:54.5]} 22... f5 {[%clk 0:00:53.9]} 23. h4 {[%clk 0:01:28.7]} 23... Kf7
{[%clk 0:00:53.8]} 24. g3 {[%clk 0:01:28]} 24... g6 {[%clk 0:00:53.9]} 25. Bb6
{[%clk 0:01:17.3]} 25... axb4 {[%clk 0:00:52.9]} 26. cxb4 {[%clk 0:01:18.2]}
26... Be6 {[%clk 0:00:45.7]} 27. a5 {[%clk 0:01:13.7]} 27... Bc4+ {[%clk
0:00:44.7]} 28. Ke1 {[%clk 0:01:13.6]} 28... Bxd4 {[%clk 0:00:37.2]} 29. Bxd4
{[%clk 0:01:13.1]} 29... Ke6 {[%clk 0:00:37.7]} 30. Kd2 {[%clk 0:01:09.5]} 30...
Kd5 {[%clk 0:00:37.7]} 31. Ke3 {[%clk 0:01:09.9]} 31... h6 {[%clk 0:00:35.7]}
32. Rd1 {[%clk 0:01:09.2]} 32... Bd3 {[%clk 0:00:35.6]} 33. Rc1 {[%clk
0:01:02.2]} 33... Rb8 {[%clk 0:00:34.3]} 34. Bb6 {[%clk 0:00:55.5]} 34... g5
{[%clk 0:00:30.5]} 35. Rc5+ {[%clk 0:00:54.8]} 35... Kd6 {[%clk 0:00:29.6]} 36.
hxg5 {[%clk 0:00:53]} 36... hxg5 {[%clk 0:00:28.7]} 37. Rxf5 {[%clk 0:00:53.3]}
37... Rg8 {[%clk 0:00:28.3]} 38. g4 {[%clk 0:00:48]} 38... Rg7 {[%clk
0:00:23.3]} 39. Bd8 {[%clk 0:00:43.2]} 39... Rg6 {[%clk 0:00:22.9]} 40. Rxg5
{[%clk 0:00:41.9]} 40... Rxg5 {[%clk 0:00:14.7]} 41. Bxg5 {[%clk 0:00:42]} 41...
c5 {[%clk 0:00:15.3]} 42. bxc5+ {[%clk 0:00:38.5]} 42... Kxc5 {[%clk 0:00:16.2]}
43. f4 {[%clk 0:00:38.9]} 43... Kd5 {[%clk 0:00:13.6]} 44. Bd8 {[%clk
0:00:38.1]} 44... Ke6 {[%clk 0:00:13.3]} 45. f5+ {[%clk 0:00:37.2]} 45... Ke5
{[%clk 0:00:13.1]} 46. Bc7+ {[%clk 0:00:35.7]} 46... Kf6 {[%clk 0:00:13.1]} 47.
Kf4 {[%clk 0:00:36.2]} 47... e3 {[%clk 0:00:09.5]} 48. Kxe3 {[%clk 0:00:34.2]}
48... Bc2 {[%clk 0:00:02.1]} 49. Kf4 {[%clk 0:00:34]} 49... Bd3 {[%clk
0:00:01.5]} 50. g5+ {[%clk 0:00:34.2]} 50... Kf7 {[%clk 0:00:01.4]} 51. g6+
{[%clk 0:00:33.2]} 1-0

[Event "Early-Titled-Tuesday-Blitz-October-10-2023"]
[Site "Chess.com"]
[Date "2023.10.10"]
[Round "6"]
[White "MatthewG-p4p"]
[Black "LeninGuerra"]
[Result "1/2-1/2"]
[WhiteElo "2822"]
[BlackElo "2593"]
[TimeControl "180+1"]
[EndTime "9:05:07 PDT"]
[Termination "Game drawn by repetition"]

1. e4 {[%clk 0:03:00.9]} 1... c5 {[%clk 0:02:58.7]} 2. c3 {[%clk 0:03:01]} 2...
d5 {[%clk 0:02:53.6]} 3. exd5 {[%clk 0:03:01.9]} 3... Qxd5 {[%clk 0:02:53.6]} 4.
d4 {[%clk 0:03:02.4]} 4... cxd4 {[%clk 0:02:54.5]} 5. cxd4 {[%clk 0:03:03.3]}
5... Nc6 {[%clk 0:02:54.3]} 6. Nf3 {[%clk 0:03:03.7]} 6... e6 {[%clk 0:02:54.5]}
7. Nc3 {[%clk 0:03:03.6]} 7... Bb4 {[%clk 0:02:48.8]} 8. Bd3 {[%clk 0:03:03.3]}
8... Nf6 {[%clk 0:02:48.2]} 9. O-O {[%clk 0:03:03]} 9... Qd8 {[%clk 0:02:45.7]}
10. Bg5 {[%clk 0:02:53.9]} 10... h6 {[%clk 0:02:43.6]} 11. Bh4 {[%clk 0:02:54]}
11... O-O {[%clk 0:02:37.2]} 12. Re1 {[%clk 0:02:50]} 12... Be7 {[%clk 0:02:37]}
13. Rc1 {[%clk 0:02:36.9]} 13... Nb4 {[%clk 0:02:33]} 14. Bb1 {[%clk 0:02:36.8]}
14... Nbd5 {[%clk 0:02:33.1]} 15. Ne5 {[%clk 0:02:31.3]} 15... Bd7 {[%clk
0:02:14]} 16. Qd3 {[%clk 0:02:18.2]} 16... Nb4 {[%clk 0:01:47.3]} 17. Qd2 {[%clk
0:01:59.2]} 17... Be8 {[%clk 0:01:45.6]} 18. a3 {[%clk 0:01:55.5]} 18... Nbd5
{[%clk 0:01:45.5]} 19. Qd3 {[%clk 0:01:51.6]} 19... Nf4 {[%clk 0:01:34.2]} 20.
Qf3 {[%clk 0:01:22.1]} 20... N6d5 {[%clk 0:01:17.5]} 21. Bg3 {[%clk 0:00:38.5]}
21... f6 {[%clk 0:00:54]} 22. Nxd5 {[%clk 0:00:17.5]} 22... Nxd5 {[%clk
0:00:53.5]} 23. Ng6 {[%clk 0:00:07.8]} 23... Bxg6 {[%clk 0:00:53.5]} 24. Bxg6
{[%clk 0:00:08.7]} 24... Rc8 {[%clk 0:00:51]} 25. Rxc8 {[%clk 0:00:05.2]} 25...
Qxc8 {[%clk 0:00:51.2]} 26. Bb1 {[%clk 0:00:05.3]} 26... f5 {[%clk 0:00:48.4]}
27. h3 {[%clk 0:00:05.5]} 27... Rd8 {[%clk 0:00:37.8]} 28. Be5 {[%clk
0:00:04.6]} 28... Bf6 {[%clk 0:00:33.2]} 29. Ba2 {[%clk 0:00:05.2]} 29... Bxe5
{[%clk 0:00:31.6]} 30. Rxe5 {[%clk 0:00:06.1]} 30... Qc1+ {[%clk 0:00:31.3]} 31.
Kh2 {[%clk 0:00:06.8]} 31... Qxb2 {[%clk 0:00:19.5]} 32. Bxd5 {[%clk 0:00:06.9]}
32... exd5 {[%clk 0:00:20.1]} 33. Qxf5 {[%clk 0:00:05.4]} 33... Qxd4 {[%clk
0:00:16.1]} 34. Qe6+ {[%clk 0:00:05.5]} 34... Kh7 {[%clk 0:00:15.4]} 35. Qf5+
{[%clk 0:00:05.9]} 35... Kg8 {[%clk 0:00:15.2]} 36. Qe6+ {[%clk 0:00:05.6]}
36... Kh7 {[%clk 0:00:15.2]} 37. Rf5 {[%clk 0:00:05.8]} 37... Qe4 {[%clk
0:00:12.2]} 38. Qxe4 {[%clk 0:00:04.9]} 38... dxe4 {[%clk 0:00:12.1]} 39. Re5
{[%clk 0:00:05.8]} 39... Rd4 {[%clk 0:00:12.2]} 40. Re7 {[%clk 0:00:05.5]} 40...
Ra4 {[%clk 0:00:11.9]} 41. Rxb7 {[%clk 0:00:05.8]} 41... Rxa3 {[%clk 0:00:12.5]}
42. Re7 {[%clk 0:00:06.2]} 42... Ra4 {[%clk 0:00:12.3]} 43. Kg3 {[%clk 0:00:07]}
43... Kg6 {[%clk 0:00:12.8]} 44. Kf4 {[%clk 0:00:07.2]} 44... Ra2 {[%clk
0:00:11.9]} 45. Kg3 {[%clk 0:00:04.5]} 45... Kf5 {[%clk 0:00:11.7]} 46. Rf7+
{[%clk 0:00:05]} 46... Kg6 {[%clk 0:00:11.2]} 47. Re7 {[%clk 0:00:05.4]} 47...
Ra4 {[%clk 0:00:11]} 48. Kf4 {[%clk 0:00:05.8]} 48... Ra2 {[%clk 0:00:11.4]} 49.
Kg3 {[%clk 0:00:06.2]} 1/2-1/2